Cogmind - Beta 14 @@@ ROGUE MODE // 2025.03.30 @ 13:16:16 Player: McSaucyNugget Result: Self-destructed Performance ------------- Evolutions (3) 1500 Regions Visited (6) 1200 Robots Destroyed (66) 330 Value Destroyed (1489) 1489 Prototype IDs (25) 500 Alien Tech Used (0) 0 Bonus (343) 343 TOTAL SCORE: 5362 Bonus ------- High Alert Combat Kills 43 Aligned with FarCom 300 Cogmind --------- Core Integrity 382/700 Matter 0/300 Energy 100/100 System Corruption 3% Temperature Cool (0) Movement Rolling (140) Ox4 Location -7/Factory Parts ------- > --- POWER (1) -------- (None) > --- PROPULSION (5) --- Light Treads Wheel > --- UTILITY (5) ------ High-capacity Storage Unit Machine Analyzer Improved Utility Shielding Hacking Suite Hacking Suite > --- WEAPON (2) ------- (None) > --- INVENTORY (20) --- Light Nuclear Core Light Nuclear Core Micro Nuclear Core VTOL Module Improved Flight Unit Improved Flight Unit Xenon Bombardment Thruster Advanced Heat Sink Advanced Visual Processing Unit Graphene Brace System Shield EM Pulse Gun YOLO Cannon Light Assault Rifle Light Assault Rifle Autogun Autogun Peak State ------------ > --- POWER ------------ Light Angular Momentum Engine > --- PROPULSION ------- Compact Wheel Compact Wheel Armored Wheel Armored Wheel > --- UTILITY ---------- High-capacity Storage Unit Machine Analyzer Improved Utility Shielding Hacking Suite Hacking Suite > --- WEAPON ----------- YOLO Cannon > --- INVENTORY -------- Light Nuclear Core Light Nuclear Core Light Treads VTOL Module Improved Flight Unit Improved Flight Unit Xenon Bombardment Thruster Advanced Heat Sink Advanced Visual Processing Unit Graphene Brace System Shield EM Pulse Gun Light Assault Rifle Light Assault Rifle Autogun Autogun Bore Cannon Katana [Rating: 49] Favorites ----------- Power Light Ion Engine Engine Light Ion Engine Power Core Light Nuclear Core Propulsion Armored Wheel Treads Light Treads Leg Aluminum Leg Wheel Armored Wheel Utility Hacking Suite Device Seismic Detector Storage High-capacity Storage Unit Processor Machine Analyzer Hackware Hacking Suite Protection Improved Utility Shielding Weapon Medium Laser Energy Gun Medium Laser Energy Cannon YOLO Cannon Ballistic Gun Light Assault Rifle Ballistic Cannon Bore Cannon Launcher Grenade Launcher Slashing Weapon Katana Build | -11 -10 -10 -10 -9 -8 -7 ------- Run | Yrd Mat Min Exi Min Mat Fac Slots Evolved 6 | . . . . . 4 2 Power . | . . . . . . . Propulsion 3 | . . . . . 2 1 Utility 3 | . . . . . 2 1 Weapon . | . . . . . . . Parts Attached 58 | 8 12 . 2 . 22 14 Power 7 | 1 1 . . . 5 . Engine 6 | 1 1 . . . 4 . Core 1 | . . . . . 1 . Reactor . | . . . . . . . Propulsion 13 | 3 4 . . . 2 4 Treads 5 | 2 2 . . . . 1 Leg 1 | 1 . . . . . . Wheel 7 | . 2 . . . 2 3 Hover . | . . . . . . . Flight . | . . . . . . . Utility 14 | 2 3 . 1 . 6 2 Device 5 | 1 1 . . . 3 . Storage 5 | 1 2 . 1 . 1 . Processor 1 | . . . . . . 1 Hackware 2 | . . . . . 1 1 Protection 1 | . . . . . 1 . Artifact . | . . . . . . . Weapon 24 | 2 4 . 1 . 9 8 Energy Gun 4 | 2 1 . . . 1 . Energy Cannon 4 | . . . 1 . 2 1 Ballistic Gun 11 | . 3 . . . 3 5 Ballistic Cannon 3 | . . . . . 2 1 Launcher 1 | . . . . . 1 . Special Weapon . | . . . . . . . Impact Weapon . | . . . . . . . Slashing Weapon 1 | . . . . . . 1 Piercing Weapon . | . . . . . . . Special Melee Weapon . | . . . . . . . Unidentified Prototypes 1 | . . . . . 1 . Parts Lost 15 | . 4 . . 1 3 7 Power 4 | . 1 . . 1 1 1 Propulsion 6 | . . . . . 2 4 Utility 1 | . 1 . . . . . Weapon 4 | . 2 . . . . 2 Highest Loss Streak 6 | . 2 . . 1 2 6 To Critical Strikes 1 | . . . . . . 1 Average Slot Usage (%) 89 | . 94 100 91 83 85 79 Engine 10 | . 13 14 14 12 6 6 Treads 6 | . 15 . . . . . Wheel 20 | . 12 28 28 28 32 19 Device 8 | . 9 14 14 14 9 . Storage 11 | . 14 14 14 14 9 7 Processor 1 | . . . . . . 6 Hackware 4 | . . . . . 8 14 Protection 2 | . . . . . 7 7 Energy Gun 7 | . 14 14 6 . 1 . Energy Cannon 2 | . . . 7 14 4 . Ballistic Gun 8 | . 12 14 6 . 2 7 Ballistic Cannon 1 | . . . . . 2 6 Peak Build Rating 49 | 7 10 11 29 29 45 49 Average Rating 20 | 4 8 10 20 28 34 35 On Entrance 16 | . 7 10 11 29 28 33 Naked Turns . | . . . . . . . Heaviest Build 71 | 12 67 27 62 62 71 69 Greatest Support 56 | 40 40 24 24 24 48 56 Greatest Overweight (x) 9 | 3 9 1 2 2 2 4 Average Overweight (x) 1 | . 1 1 1 2 1 1 Largest Inventory Capacity 20 | 8 20 15 20 20 20 20 Average Capacity 17 | 6 14 15 17 20 20 20 Most Carried 20 | 3 14 15 15 14 20 20 Average Carried 13 | 1 9 14 13 13 15 19 Final Capacity 20 | 8 15 15 20 20 20 20 Final Carried 20 | 3 14 15 13 14 20 18 Class Distribution -------------------- 75% | Mutant 14% | Hacker-Mutant 10% | Scavenger-Mutant Dominant Class ---------------- Mutant | -10/Materials Mutant | -10/Mines Mutant | -10/Exiles Mutant | -9/Mines Mutant | -8/Materials Hacker-Mutant | -7/Factory Resources | -11 -10 -10 -10 -9 -8 -7 ----------- Run | Yrd Mat Min Exi Min Mat Fac Matter Collected 972 | 188 332 . . 47 256 149 Remotely . | . . . . . . . Salvage Created 2226 | 139 916 . . . 863 308 Parts 131 | 5 51 . . . 48 27 Haulers Intercepted 4 | . 2 . . . 2 . Recyclers Shooed 8 | . 7 . . . . 1 Parts Field Recycled . | . . . . . . . Retrieved Matter . | . . . . . . . Parts Self-Destructed . | . . . . . . . Prevented . | . . . . . . . Kills | -11 -10 -10 -10 -9 -8 -7 ------- Run | Yrd Mat Min Exi Min Mat Fac Combat Hostiles Destroyed 38 | . 13 . . . 20 5 Guns 18 | . 12 . . . 1 5 Cannons 6 | . . . . . 6 . AOE 12 | . . . . . 12 . Classes Destroyed 14 | 2 7 . . . 3 2 Worker 4 | . 3 . . . . 1 Builder 4 | . 1 . . . 2 1 Tunneler 2 | 2 . . . . . . Hauler 4 | . 2 . . . 2 . Recycler 8 | 1 5 . . . . 2 Carrier 1 | . . . . . 1 . Operator 4 | . 2 . . . 2 . Watcher 1 | . 1 . . . . . Swarmer 15 | . 8 . . . 6 1 Grunt 17 | . 5 . . . 11 1 Duelist 1 | . . . . . . 1 Sentry 2 | . . . . . 2 . Programmer 2 | . . . . . . 2 Heavy 1 | . . . . . 1 . Best Kill Streak 15 | 3 6 . . . 15 4 Combat Bots Only 11 | . 3 . . . 11 3 Max Kills in Single Turn 6 | 1 2 . . . 6 1 Gunslinging 1 | . 1 . . . . . Exploded 3 | . . . . . 3 . Melee . | . . . . . . . Uniques/NPCs Destroyed . | . . . . . . . Combat | -11 -10 -10 -10 -9 -8 -7 -------- Run | Yrd Mat Min Exi Min Mat Fac Hostile Shots Fired 263 | . 119 . . 2 79 63 Missed 74 | . 34 . . . 29 11 Damage Taken 2852 | . 934 . . 74 874 970 Core 659 | . 183 . . 22 136 318 Absorbed by Shields . | . . . . . . . Redirected to Shielding 81 | . . . . . 58 23 Core Remaining (%) 64 | 100 . . . 18 75 . Volleys Fired 159 | 8 97 . . . 29 25 Largest 2 | 2 2 . . . 2 2 Hottest 122 | 90 90 . . . 122 85 Shots Fired 283 | 16 181 . . . 37 49 Gun 243 | 16 181 . . . 11 35 Cannon 39 | . . . . . 25 14 Launcher 1 | . . . . . 1 . Special . | . . . . . . . Kinetic 156 | . 83 . . . 24 49 Thermal 126 | 16 98 . . . 12 . Explosive 1 | . . . . . 1 . Electromagnetic . | . . . . . . . Robot Hit Streak 16 | 5 16 . . . 5 11 Robot Miss Streak 5 | 3 5 . . . 4 5 Penetration Max 1 | . . . . . . 1 Secondary Targets 5 | . 2 . . . . 3 Max Gunslinging Chain 1 | . 1 . . . . 1 Shots Hit Robots 173 | 8 108 . . . 22 35 Core Hits 100 | 4 42 . . . 29 25 Critical Kills 6 | . . . . . 5 1 Critical Parts Destroyed 4 | . . . . . 2 2 Critical Strikes 16 | 1 5 . . . 7 3 Burn 6 | 1 5 . . . . . Meltdown 2 | . . . . . 2 . Destroy 8 | . . . . . 5 3 Melee Attacks . | . . . . . . . Impact . | . . . . . . . Slashing . | . . . . . . . Piercing . | . . . . . . . Sneak Attacks . | . . . . . . . Combat Hostiles . | . . . . . . . Follow-up Attacks . | . . . . . . . Damage Inflicted 4737 | 110 1281 . . . 2554 792 Guns 1992 | 110 1204 . . . 93 585 Cannons 1053 | . . . . . 870 183 Explosions 1616 | . 25 . . . 1591 . Melee . | . . . . . . . Ramming 76 | . 52 . . . . 24 Kinetic 1493 | . 461 . . . 264 768 Thermal 3001 | 110 743 . . . 2148 . Explosive 167 | . 25 . . . 142 . Electromagnetic . | . . . . . . . Impact . | . . . . . . . Slashing . | . . . . . . . Piercing . | . . . . . . . Highest Corruption 3 | . 2 2 2 2 . 3 Average Corruption 1 | . 1 2 2 2 . 1 Corruption Purged . | . . . . . . . Corruption Blocked . | . . . . . . . Effects 21 | . 8 4 3 5 . 1 Message Errors 2 | . 1 . 1 . . . Matter Fused 8 | . 2 3 2 1 . . Heat Flow Errors 1 | . . . . 1 . . Energy Discharges 6 | . 3 1 . 2 . . Data Loss (minor) 3 | . 1 . . 1 . 1 Data Loss (major) 1 | . 1 . . . . . Overload Shots . | . . . . . . . Overflow Damage 154 | . . . . . 154 . Projectiles 6 | . . . . . 6 . Explosions 148 | . . . . . 148 . Melee . | . . . . . . . Knockbacks 6 | . . . . . 1 5 Impact . | . . . . . . . Kinetic 6 | . . . . . 1 5 Secondary . | . . . . . . . Self-Inflicted Damage 206 | . 105 . . . 90 11 Shots 3 | . 1 . . . 2 . Rammed 14 | . 11 . . . . 3 Targets Rammed 14 | . 11 . . . . 3 Kicked . | . . . . . . . Crushed . | . . . . . . . Highest Temperature 256 | 120 256 . . 199 36 75 Average Temperature 55 | 49 62 . . 109 21 18 Received Heat Transfer 711 | . 162 . . . 396 153 Siege Activations . | . . . . . . . Robots Corrupted . | . . . . . . . Combat Hostiles . | . . . . . . . Parts Fried . | . . . . . . . Impact Corruptions . | . . . . . . . Robots Melted 3 | . 1 . . . 2 . Combat Hostiles 2 | . 1 . . . 1 . Parts Melted 13 | . 4 . . . 9 . Heat Transferred 5042 | 359 2566 . . . 2117 . Parts Sabotaged . | . . . . . . . Parts Stolen . | . . . . . . . Parts Stripped . | . . . . . . . Power Chain Reactions . | . . . . . . . Alert | -11 -10 -10 -10 -9 -8 -7 ------- Run | Yrd Mat Min Exi Min Mat Fac Peak Influence 582 | 15 197 25 . . 582 264 Initial 264 | . 9 25 . . . 264 Average 76 | 3 74 25 . . 173 71 Maximum Alert Level 2 | . . . . . 2 1 Low Security (%) 94 | 100 100 100 . 100 65 97 Level 1 4 | . . . . . 27 2 Level 2 1 | . . . . . 7 . Level 3 . | . . . . . . . Level 4 . | . . . . . . . Level 5 . | . . . . . . . High Security . | . . . . . . . Max Security . | . . . . . . . Squads Dispatched 10 | . 3 . . . 3 4 Investigation 2 | . 1 . . . . 1 Extermination 2 | . . . . . . 2 Reinforcement 6 | . 2 . . . 3 1 Assault . | . . . . . . . Garrison . | . . . . . . . Intercept . | . . . . . . . Searches Triggered . | . . . . . . . Construction Impeded 1 | . . . . . . 1 Haulers Reinforced . | . . . . . . . Active Scanning Responses . | . . . . . . . Cargo Convoy Interrupts 1 | . . . . . . 1 Stealth | -11 -10 -10 -10 -9 -8 -7 --------- Run | Yrd Mat Min Exi Min Mat Fac Distress Signals 4 | . 1 . . . 3 . Communications Jammed . | . . . . . . . Distress Signals . | . . . . . . . Times Spotted 74 | . 32 . . 1 28 13 Peak Tracking Total 8 | . 5 . . 1 8 6 Tactical Retreats 4 | . . . . 1 2 1 Traps | -11 -10 -10 -10 -9 -8 -7 ------- Run | Yrd Mat Min Exi Min Mat Fac Traps Triggered 9 | . 5 . . . 2 2 Indirectly . | . . . . . . . Trap Hack Attempts . | . . . . . . . Triggered . | . . . . . . . Disarmed . | . . . . . . . Reprogrammed . | . . . . . . . Reused . | . . . . . . . Traps Extracted . | . . . . . . . Installed . | . . . . . . . Triggered 1 | . . . . . . 1 Machines | -11 -10 -10 -10 -9 -8 -7 ---------- Run | Yrd Mat Min Exi Min Mat Fac Machines Disabled 6 | . 1 . . . 5 . Max in Single Turn 2 | . 1 . . . 2 . Machines Repaired . | . . . . . . . Machines Dismantled . | . . . . . . . Machines Sabotaged . | . . . . . . . Overloaded Fab Kills . | . . . . . . . Hacking | -11 -10 -10 -10 -9 -8 -7 --------- Run | Yrd Mat Min Exi Min Mat Fac Machines Accessed 9 | . 3 . 1 . 2 3 Terminals 5 | . 3 . . . 1 1 Fabricators 1 | . . . . . . 1 Repair Stations . | . . . . . . . Recycling Units . | . . . . . . . Scanalyzers 2 | . . . . . 1 1 Garrison Access . | . . . . . . . Total Hacks 14 | . 4 . 1 . 2 7 Successful 9 | . 1 . 1 . 1 6 Failed 5 | . 3 . . . 1 1 Catastrophic . | . . . . . . . Database Lockouts . | . . . . . . . Manual 3 | . 1 . 1 . 1 . Terminals 8 | . 4 . . . 1 3 Fabricators 2 | . . . . . . 2 Repair Stations . | . . . . . . . Recycling Units . | . . . . . . . Scanalyzers 3 | . . . . . 1 2 Garrison Access . | . . . . . . . Terminal Hacks 4 | . 1 . 1 . . 2 Alert Level 1 | . . . . . . 1 Unreport Threat 1 | . . . . . . 1 Zone Layout 1 | . 1 . . . . . Derelict Proto ID Bank 1 | . . . 1 . . . Fabricator Hacks 2 | . . . . . . 2 Load Schematic 1 | . . . . . . 1 Build 1 | . . . . . . 1 Repair Station Hacks . | . . . . . . . Recycling Unit Hacks . | . . . . . . . Scanalyzer 3 | . . . . . 1 2 Insert Component 2 | . . . . . 1 1 Analyze 1 | . . . . . . 1 Garrison Access Hacks . | . . . . . . . Unauthorized Hacks . | . . . . . . . Terminals . | . . . . . . . Fabricators . | . . . . . . . Repair Stations . | . . . . . . . Recycling Units . | . . . . . . . Scanalyzers . | . . . . . . . Garrison Access . | . . . . . . . Data Cores Recovered . | . . . . . . . Used . | . . . . . . . Hacking Detections 6 | . 3 . . . . 3 Full Trace Events 1 | . . . . . . 1 Feedback Events . | . . . . . . . Feedback Blocked . | . . . . . . . Robot Schematics Acquired . | . . . . . . . Robots Built . | . . . . . . . Authchips . | . . . . . . . Time . | . . . . . . . Total Robot Build Rating . | . . . . . . . Part Schematics Acquired 1 | . . . . . . 1 Parts Built 1 | . . . . . . 1 Authchips . | . . . . . . . Time 49 | . . . . . . 49 Total Part Build Rating 2 | . . . . . . 2 Parts Repaired . | . . . . . . . Time . | . . . . . . . Parts Recycled . | . . . . . . . Recycled Matter . | . . . . . . . Retrieved Matter . | . . . . . . . Retrieved Components . | . . . . . . . Parts Scanalyzed 1 | . . . . . . 1 Part Schematics Acquired 1 | . . . . . . 1 Parts Damaged . | . . . . . . . Bothacking | -11 -10 -10 -10 -9 -8 -7 ------------ Run | Yrd Mat Min Exi Min Mat Fac Used RIF Installer . | . . . . . . . Robots Hacked . | . . . . . . . Non-combat . | . . . . . . . Combat . | . . . . . . . Robot Hacks Applied . | . . . . . . . Relay Couplers Released . | . . . . . . . Fabnet Peak Effective % . | . . . . . . . Robots Rewired . | . . . . . . . Allies Hacked . | . . . . . . . Hacks Repelled . | . . . . . . . Allies | -11 -10 -10 -10 -9 -8 -7 -------- Run | Yrd Mat Min Exi Min Mat Fac Total Allies 3 | . . 3 . . . . Largest Group 3 | . . 3 3 3 . . Highest-Rated Group 40 | . . 40 40 40 . . Highest-Rated Ally 16 | . . 16 16 16 . . Total Orders . | . . . . . . . Ally Attacks 4 | . . . . 4 . . Total Damage 38 | . . . . 38 . . Kills . | . . . . . . . Allies Corrupted . | . . . . . . . Allies Melted . | . . . . . . . Intel | -11 -10 -10 -10 -9 -8 -7 ------- Run | Yrd Mat Min Exi Min Mat Fac Robot Analysis Total . | . . . . . . . Derelict Logs Recovered . | . . . . . . . Drone Launches . | . . . . . . . Drone Recoveries . | . . . . . . . Exploration | -11 -10 -10 -10 -9 -8 -7 ------------- Run | Yrd Mat Min Exi Min Mat Fac Turns Passed 3706 | 120 1443 256 292 245 496 854 Spaces Moved 2296 | 50 787 242 253 204 248 512 Core 116 | 14 102 . . . . . Treads 255 | 33 217 . . . . 5 Legs 3 | 3 . . . . . . Wheels 1922 | . 468 242 253 204 248 507 Hover . | . . . . . . . Flight . | . . . . . . . Fastest Speed 50 | 50 105 105 105 120 105 95 Average Speed 124 | 165 142 105 112 120 105 117 Slowest Speed 500 | 200 500 105 120 120 120 320 Overloaded Moves . | . . . . . . . Propulsion Burnouts . | . . . . . . . Robots Hopped . | . . . . . . . Cave-ins Triggered . | . . . . . . . Exploration Rate (%) 46 | 5 99 71 64 51 23 12 Regions Visited 6 Branch Regions 3 Pre-discovered Areas . | . . . . . . . Known Exits Taken . | . . . . . . . Unknown Exits Taken 6 | 1 1 1 1 1 1 . Scrap Searched 2 | . . 1 . 1 . . Spaces Dug . | . . . . . . . Terrain Destroyed 131 | . 24 . . . 103 4 Melee . | . . . . . . . Projectile 14 | . . . . . 10 4 AOE 117 | . 24 . . . 93 . Terrain Rammed . | . . . . . . . Walls Destroyed . | . . . . . . . Machines Disabled . | . . . . . . . Actions | -11 -10 -10 -10 -9 -8 -7 --------- Run | Yrd Mat Min Exi Min Mat Fac Total 2853 | 68 924 244 263 204 431 719 Wait 265 | . 7 . 2 . 108 148 Move 2290 | 49 786 241 252 203 247 512 Hop . | . . . . . . . Pick Up 29 | 3 6 2 1 1 11 5 Fast Attach 25 | 7 6 . . . 6 6 Attach 23 | . 3 . 1 . 13 6 Detach 20 | . 5 . 2 . 8 5 Swap 10 | 1 3 . 1 . 3 2 Drop 18 | . . 1 4 . 6 7 Fire 159 | 8 97 . . . 29 25 Melee . | . . . . . . . Ram 7 | . 4 . . . . 3 Kick . | . . . . . . . Crush 7 | . 7 . . . . . Escape Stasis . | . . . . . . . Rewire . | . . . . . . . Trap . | . . . . . . . Miscellaneous . | . . . . . . . Route ------- -11/Scrapyard -10/Materials (discovered 4 exits: [*Mat x3] / [*Min]) -10/Mines (discovered 3 exits: [*Mat x2] / *Exi) -10/Exiles -9/Mines (discovered 2 exits: *Mat x2) -8/Materials -7/Factory (discovered 1 exit: [*Fac]) History --------- Turn | Location | Event 5 | -11/Scrapyard | Discovered new exit (range 16) 121 | -11/Scrapyard | Entered Materials 307 | -10/Materials | Build established: Mutant 817 | -10/Materials | Discovered new exit (range 13) 927 | -10/Materials | Discovered new exit (range 9) 964 | -10/Materials | Core integrity fell below 50% 1169 | -10/Materials | Discovered new exit (range 16) 1337 | -10/Materials | Discovered new exit (range 15) 1564 | -10/Materials | Entered Mines 1571 | -10/Mines | Assisted by bots powering up and referring to "LRC-V3" 1581 | -10/Mines | Discovered new exit (range 5) 1658 | -10/Mines | Discovered new exit (range 10) 1798 | -10/Mines | A weapon hastily lodged in a ceiling crevice suddenly fell to the ground 1811 | -10/Mines | Deemed a non-threat by the Exiles lab entrance 1812 | -10/Mines | Discovered new exit (range 5) 1820 | -10/Mines | Entered Exiles 1820 | -10/Exiles | Accompanied by 3 allies 1847 | -10/Exiles | Met 8R-AWN 1864 | -10/Exiles | Met EX-HEX 1896 | -10/Exiles | Met EX-BIN 1909 | -10/Exiles | Aligned with FarCom system 1910 | -10/Exiles | Given EX-Vault access code 1934 | -10/Exiles | Opened EX-Vault 1943 | -10/Exiles | Found YOLO Cannon 1971 | -10/Exiles | Warned to stay clear of 0b10 Research branches 1987 | -10/Exiles | Exiles lab attacked by MAIN.C 2095 | -10/Exiles | Discovered new exit (range 11) 2112 | -10/Exiles | Left Exiles lab with YOLO Cannon 2112 | -10/Exiles | Entered Mines 2112 | -9/Mines | Accompanied by 3 allies 2115 | -9/Mines | Met a Derelict bent on vengeance 2144 | -9/Mines | YI-UF0 nonchalantly dropped a Grenade Launcher on the ground 2201 | -9/Mines | Discovered new exit (range 7) 2325 | -9/Mines | Discovered new exit (range 16) 2326 | -9/Mines | Core integrity fell below 20% 2357 | -9/Mines | Entered Materials 2357 | -8/Materials | Evolved 4 slots: Propulsion x2, Utility x2 2372 | -8/Materials | Lost 4 allies 2719 | -8/Materials | Destroyed 7 combat bots 2813 | -8/Materials | Discovered new exit (range 11) 2853 | -8/Materials | Destroyed 11 combat bots 2853 | -8/Materials | Entered Factory 2853 | -7/Factory | Evolved 2 slots: Propulsion x1, Utility x1 2913 | -7/Factory | Discovered new exit (range 7) 3101 | -7/Factory | Build established: Hacker-Mutant 3376 | -7/Factory | Fabricated Imp. Flight Unit? 3543 | -7/Factory | Build established: Scavenger-Mutant 3623 | -7/Factory | Cargo convoy interrupted 3676 | -7/Factory | Lost 6 parts (1p3n2w) 3707 | -7/Factory | Self-destructed Last Messages --------------- 03679_ K-01 Serf collects debris. 03683_ U-05 Engineer works on Assembly Bed. 03683_ U-05 Engineer destroyed. 03686_ U-05 Engineer works on Assembly Bed. 03686_ P-60 Hacker destroyed. 03688_ Acquired 8 matter. 03690_ K-01 Serf collects debris. 03691_ U-05 Engineer works on Assembly Bed. 03695_ Acquired Wheel. 03696_ U-05 Engineer works on Assembly Bed. 03697_ K-01 Serf collects debris. 03701_ U-05 Engineer works on Assembly Bed. 03706_ C-30 ARC bursts open, deploying its payload. 03706_ P-60 Hacker unfolds itself. 03706_ X-62 Marksman unfolds itself. 03706_ P-60 Hacker unfolds itself. 03706_ H-55 Commando unfolds itself. 03706_ I-36 Angel unfolds itself. 03706_ Assembly Bed disabled. 03706_ U-05 Engineer works on Assembly Bed. Map ----- +----------------------------------------------------+ | "" # # ^ # """" #???????????????? | | "" # # # """" #???????????????? | | "" "% + # """" #???????????????? | | "" # " # #???????????????? | | "" ! # # # #???????????????? | | "" # # # #???????????????? | | ! # ####"##########+######???????????????? | | +###### #### ### #?????????????????? | | #????# # #?????????????????? | | #????# p # #?????????????????? | | #????# % # //! """ #?????????????????? | | ###### # //! """ #??????? ?????????? | | * # !! """ #?????? #????????? | | # #???? #????????? | | ###+############ #????????? | | """ """ """ """ %=% #????????? | | """ """ """ """ w ##???????? | | """ """ """ """ % =[ % ??????? | | %k% = #????????? | | |=h%=/! #????????? | | #### #####+######/#x#############??????????? | | ???# ^ #??# p*p!| #???????????????? | | ???# #??# """" """ i<< #???????????????? | | ???# #??# """" """" u